[Event "*** SCC Grand Prix: Titled Tuesday Blitz"]
[Site "Chess.com"]
[Date "2020.10.06"]
[Round "8"]
[White "Onischuk_V"]
[Black "WIDBIFS"]
[Result "1/2-1/2"]
[WhiteElo "2851"]
[BlackElo "2738"]
[TimeControl "180+1"]
[EndTime "11:37:29 PDT"]
[Termination "Game drawn - insufficient material"]

1. e4 {[%clk 0:03:00.4]} 1... c6 {[%clk 0:02:59.2]} 2. d4 {[%clk 0:02:59.7]}
2... d5 {[%clk 0:02:59.8]} 3. Nc3 {[%clk 0:02:59.7]} 3... dxe4 {[%clk 0:03:00]}
4. Nxe4 {[%clk 0:03:00.3]} 4... Nf6 {[%clk 0:03:00.9]} 5. Nxf6+ {[%clk
0:02:58.6]} 5... exf6 {[%clk 0:03:01.8]} 6. c3 {[%clk 0:02:58.9]} 6... Bd6
{[%clk 0:03:02.2]} 7. Bd3 {[%clk 0:02:59.4]} 7... O-O {[%clk 0:03:01.7]} 8. Qc2
{[%clk 0:03:00]} 8... Re8+ {[%clk 0:03:02.4]} 9. Ne2 {[%clk 0:02:59]} 9... h5
{[%clk 0:03:03.3]} 10. O-O {[%clk 0:02:55.8]} 10... Qc7 {[%clk 0:03:03]} 11. h3
{[%clk 0:02:54.1]} 11... Nd7 {[%clk 0:03:01.5]} 12. Re1 {[%clk 0:02:30.8]} 12...
Nf8 {[%clk 0:02:58.6]} 13. c4 {[%clk 0:02:05.5]} 13... Be6 {[%clk 0:02:41.6]}
14. c5 {[%clk 0:02:02.7]} 14... Be7 {[%clk 0:02:41.3]} 15. Nf4 {[%clk
0:02:01.4]} 15... h4 {[%clk 0:02:26]} 16. Be3 {[%clk 0:01:53.3]} 16... Rad8
{[%clk 0:02:23.4]} 17. Rad1 {[%clk 0:01:51.6]} 17... Qd7 {[%clk 0:02:15.6]} 18.
b3 {[%clk 0:01:38]} 18... b5 {[%clk 0:01:45.5]} 19. d5 {[%clk 0:01:29]} 19...
Bxd5 {[%clk 0:01:36.5]} 20. Nxd5 {[%clk 0:01:27.3]} 20... Qxd5 {[%clk
0:01:14.3]} 21. Bf5 {[%clk 0:01:26.7]} 21... Qe5 {[%clk 0:01:03]} 22. Rxd8
{[%clk 0:01:06.6]} 22... Rxd8 {[%clk 0:00:27.4]} 23. Qe4 {[%clk 0:00:54.6]}
23... Rd5 {[%clk 0:00:14.4]} 24. Bc1 {[%clk 0:00:20.9]} 24... Qxf5 {[%clk
0:00:13.8]} 25. Qxf5 {[%clk 0:00:20.7]} 25... Rxf5 {[%clk 0:00:13.8]} 26. Rxe7
{[%clk 0:00:21.3]} 26... Rxc5 {[%clk 0:00:08.9]} 27. Be3 {[%clk 0:00:20.6]}
27... Re5 {[%clk 0:00:09]} 28. Rxa7 {[%clk 0:00:20.3]} 28... Ne6 {[%clk
0:00:09.6]} 29. a4 {[%clk 0:00:20]} 29... bxa4 {[%clk 0:00:08.9]} 30. bxa4
{[%clk 0:00:20]} 30... Re4 {[%clk 0:00:08.8]} 31. a5 {[%clk 0:00:19.6]} 31...
Ra4 {[%clk 0:00:09.4]} 32. a6 {[%clk 0:00:19.8]} 32... c5 {[%clk 0:00:10.1]} 33.
Ra8+ {[%clk 0:00:19]} 33... Kh7 {[%clk 0:00:10.4]} 34. a7 {[%clk 0:00:18.8]}
34... Nc7 {[%clk 0:00:09.6]} 35. Rf8 {[%clk 0:00:16.4]} 35... Rxa7 {[%clk
0:00:08.5]} 36. Rxf7 {[%clk 0:00:16.7]} 36... Ra1+ {[%clk 0:00:08.5]} 37. Kh2
{[%clk 0:00:17]} 37... Ne6 {[%clk 0:00:08.6]} 38. Re7 {[%clk 0:00:17.6]} 38...
Ra6 {[%clk 0:00:08.7]} 39. Rd7 {[%clk 0:00:16.3]} 39... Rc6 {[%clk 0:00:08.7]}
40. f4 {[%clk 0:00:12.5]} 40... Kg6 {[%clk 0:00:07.1]} 41. Rd5 {[%clk
0:00:12.2]} 41... Kf7 {[%clk 0:00:05.9]} 42. f5 {[%clk 0:00:11.7]} 42... Nc7
{[%clk 0:00:05.7]} 43. Rd7+ {[%clk 0:00:10.8]} 43... Kg8 {[%clk 0:00:05.8]} 44.
Bf2 {[%clk 0:00:08.5]} 44... c4 {[%clk 0:00:06.3]} 45. Bxh4 {[%clk 0:00:06.9]}
45... c3 {[%clk 0:00:06.9]} 46. Rd1 {[%clk 0:00:06.8]} 46... c2 {[%clk
0:00:07.4]} 47. Rc1 {[%clk 0:00:07]} 47... Nd5 {[%clk 0:00:07.8]} 48. Be1 {[%clk
0:00:06.4]} 48... Nf4 {[%clk 0:00:07.4]} 49. Bd2 {[%clk 0:00:06.3]} 49... Nd3
{[%clk 0:00:07.9]} 50. Ra1 {[%clk 0:00:05.8]} 50... Kh7 {[%clk 0:00:04.4]} 51.
g4 {[%clk 0:00:05.6]} 51... Rb6 {[%clk 0:00:04.4]} 52. Ra3 {[%clk 0:00:05.2]}
52... Nb2 {[%clk 0:00:01.8]} 53. Rc3 {[%clk 0:00:04.6]} 53... Rd6 {[%clk
0:00:01.3]} 54. Rxc2 {[%clk 0:00:04.8]} 54... Nd3 {[%clk 0:00:01.8]} 55. Be3
{[%clk 0:00:04.8]} 55... Ne5 {[%clk 0:00:02.2]} 56. Bf4 {[%clk 0:00:04.8]} 56...
Nf3+ {[%clk 0:00:01.2]} 57. Kg3 {[%clk 0:00:05.1]} 57... Nd4 {[%clk 0:00:01.8]}
58. Rd2 {[%clk 0:00:04.6]} 58... Rd5 {[%clk 0:00:02.7]} 59. Be3 {[%clk
0:00:04.3]} 59... Nxf5+ {[%clk 0:00:01.7]} 60. gxf5 {[%clk 0:00:04.1]} 60...
Rxf5 {[%clk 0:00:02.6]} 61. Rd4 {[%clk 0:00:04.3]} 61... Kg6 {[%clk 0:00:03.1]}
62. Kh4 {[%clk 0:00:04.3]} 62... Kf7 {[%clk 0:00:03.7]} 63. Kg3 {[%clk
0:00:04.4]} 63... Kg6 {[%clk 0:00:04.1]} 64. Bf4 {[%clk 0:00:04.5]} 64... Kf7
{[%clk 0:00:04.5]} 65. Ra4 {[%clk 0:00:05.1]} 65... Rd5 {[%clk 0:00:04.7]} 66.
Be3 {[%clk 0:00:05.6]} 66... g5 {[%clk 0:00:05]} 67. Kf3 {[%clk 0:00:05.5]}
67... Kg6 {[%clk 0:00:05.5]} 68. Ke4 {[%clk 0:00:05.5]} 68... Re5+ {[%clk
0:00:06]} 69. Kf3 {[%clk 0:00:06]} 69... Rf5+ {[%clk 0:00:06.6]} 70. Kg3 {[%clk
0:00:05.7]} 70... Re5 {[%clk 0:00:07.1]} 71. Bd4 {[%clk 0:00:06.2]} 71... Re6
{[%clk 0:00:07.6]} 72. Kf3 {[%clk 0:00:06.4]} 72... Rd6 {[%clk 0:00:07.4]} 73.
Ke4 {[%clk 0:00:06.6]} 73... Re6+ {[%clk 0:00:07.9]} 74. Kd5 {[%clk 0:00:06.9]}
74... Kf5 {[%clk 0:00:07.6]} 75. Ra1 {[%clk 0:00:06.6]} 75... Re4 {[%clk
0:00:05.3]} 76. Rf1+ {[%clk 0:00:06.7]} 76... Rf4 {[%clk 0:00:05.7]} 77. Rxf4+
{[%clk 0:00:05.6]} 77... Kxf4 {[%clk 0:00:06.6]} 78. Bxf6 {[%clk 0:00:04.6]}
78... Kg3 {[%clk 0:00:07]} 79. Bxg5 {[%clk 0:00:05.1]} 79... Kxh3 {[%clk
0:00:07.6]} 1/2-1/2

[Event "*** SCC Grand Prix: Titled Tuesday Blitz"]
[Site "Chess.com"]
[Date "2020.10.06"]
[Round "8"]
[White "Abdimalik_Abdisalimov"]
[Black "RaunakSadhwani2005"]
[Result "1/2-1/2"]
[WhiteElo "2751"]
[BlackElo "2898"]
[TimeControl "180+1"]
[EndTime "11:38:04 PDT"]
[Termination "Game drawn by repetition"]

1. d4 {[%clk 0:03:00.1]} 1... g6 {[%clk 0:02:56.7]} 2. e4 {[%clk 0:02:57.5]}
2... Bg7 {[%clk 0:02:56.8]} 3. Nc3 {[%clk 0:02:57.9]} 3... d6 {[%clk 0:02:56.8]}
4. f4 {[%clk 0:02:58.2]} 4... a6 {[%clk 0:02:56.9]} 5. Nf3 {[%clk 0:02:58.6]}
5... b5 {[%clk 0:02:57.4]} 6. Bd3 {[%clk 0:02:58.6]} 6... Bb7 {[%clk 0:02:57.5]}
7. a4 {[%clk 0:02:58.9]} 7... b4 {[%clk 0:02:57.3]} 8. Ne2 {[%clk 0:02:59.2]}
8... Nf6 {[%clk 0:02:57.3]} 9. Ng3 {[%clk 0:02:58.2]} 9... Nbd7 {[%clk 0:02:55]}
10. c3 {[%clk 0:02:55.7]} 10... a5 {[%clk 0:02:51.6]} 11. O-O {[%clk 0:02:55.1]}
11... O-O {[%clk 0:02:48.5]} 12. Qe2 {[%clk 0:02:32]} 12... c5 {[%clk
0:02:28.5]} 13. e5 {[%clk 0:02:28.2]} 13... Ne8 {[%clk 0:02:24.6]} 14. e6 {[%clk
0:02:18.6]} 14... fxe6 {[%clk 0:02:24.8]} 15. Qxe6+ {[%clk 0:02:19.5]} 15... Kh8
{[%clk 0:02:25.2]} 16. Ng5 {[%clk 0:02:19.2]} 16... Ndf6 {[%clk 0:02:13.5]} 17.
Qh3 {[%clk 0:01:55.8]} 17... Bc8 {[%clk 0:02:11.6]} 18. f5 {[%clk 0:01:55.2]}
18... bxc3 {[%clk 0:02:08.7]} 19. bxc3 {[%clk 0:01:49.5]} 19... cxd4 {[%clk
0:02:08.6]} 20. cxd4 {[%clk 0:01:47.2]} 20... Nc7 {[%clk 0:02:05.9]} 21. Qh4
{[%clk 0:01:41.2]} 21... gxf5 {[%clk 0:01:34.1]} 22. Nxf5 {[%clk 0:01:38.3]}
22... Bxf5 {[%clk 0:01:30.4]} 23. Rxf5 {[%clk 0:01:28.8]} 23... h6 {[%clk
0:01:23.5]} 24. Ne4 {[%clk 0:00:55.3]} 24... Ng8 {[%clk 0:01:10.6]} 25. Rxf8
{[%clk 0:00:44.4]} 25... Qxf8 {[%clk 0:01:11.5]} 26. Be3 {[%clk 0:00:36.6]}
26... Nd5 {[%clk 0:01:01.7]} 27. Rf1 {[%clk 0:00:36.2]} 27... Qd8 {[%clk
0:00:38.8]} 28. Bd2 {[%clk 0:00:30]} 28... Qb6 {[%clk 0:00:24.6]} 29. Kh1 {[%clk
0:00:20.7]} 29... Qxd4 {[%clk 0:00:21.9]} 30. Qg3 {[%clk 0:00:18.8]} 30... Rf8
{[%clk 0:00:18.7]} 31. Rd1 {[%clk 0:00:15.8]} 31... Nb4 {[%clk 0:00:13.6]} 32.
Bb1 {[%clk 0:00:14]} 32... Qe5 {[%clk 0:00:11.8]} 33. Qg6 {[%clk 0:00:12]} 33...
Qf5 {[%clk 0:00:09.2]} 34. Qxf5 {[%clk 0:00:12.2]} 34... Rxf5 {[%clk 0:00:10.1]}
35. Nxd6 {[%clk 0:00:13.1]} 35... Rf8 {[%clk 0:00:09.6]} 36. Nc4 {[%clk
0:00:12.7]} 36... Rd8 {[%clk 0:00:08.7]} 37. Nxa5 {[%clk 0:00:11.2]} 37... Na6
{[%clk 0:00:09.2]} 38. Nc4 {[%clk 0:00:10.8]} 38... Nc5 {[%clk 0:00:08.8]} 39.
Bc2 {[%clk 0:00:09.3]} 39... Nf6 {[%clk 0:00:08.3]} 40. Be3 {[%clk 0:00:08.8]}
40... Rc8 {[%clk 0:00:08.8]} 41. Nb6 {[%clk 0:00:09.1]} 41... Rc6 {[%clk
0:00:08.1]} 42. Rd8+ {[%clk 0:00:09.2]} 42... Ng8 {[%clk 0:00:07.3]} 43. a5
{[%clk 0:00:09.1]} 43... Ne6 {[%clk 0:00:06.8]} 44. Rd2 {[%clk 0:00:08]} 44...
Bc3 {[%clk 0:00:07]} 45. Re2 {[%clk 0:00:06.1]} 45... Bxa5 {[%clk 0:00:07.5]}
46. Nd5 {[%clk 0:00:06.8]} 46... Bd8 {[%clk 0:00:08]} 47. g3 {[%clk 0:00:06]}
47... Rd6 {[%clk 0:00:08.1]} 48. Nb4 {[%clk 0:00:05.9]} 48... Ng5 {[%clk
0:00:06.6]} 49. Nd3 {[%clk 0:00:05.2]} 49... Kg7 {[%clk 0:00:06.2]} 50. Nf4
{[%clk 0:00:05.6]} 50... Nf6 {[%clk 0:00:06.1]} 51. Kg2 {[%clk 0:00:05.8]} 51...
Nf7 {[%clk 0:00:06.4]} 52. Bc5 {[%clk 0:00:05.9]} 52... Rc6 {[%clk 0:00:05.2]}
53. Ne6+ {[%clk 0:00:06.8]} 53... Kg8 {[%clk 0:00:04.2]} 54. Nxd8 {[%clk
0:00:07.7]} 54... Rxc5 {[%clk 0:00:03.5]} 55. Ne6 {[%clk 0:00:06.4]} 55... Rc6
{[%clk 0:00:03.4]} 56. Nf4 {[%clk 0:00:06.3]} 56... e5 {[%clk 0:00:03.3]} 57.
Nd3 {[%clk 0:00:05.7]} 57... Kg7 {[%clk 0:00:03.2]} 58. Ba4 {[%clk 0:00:05]}
58... Re6 {[%clk 0:00:02.4]} 59. Bb3 {[%clk 0:00:05.2]} 59... Re7 {[%clk
0:00:02.5]} 60. Bxf7 {[%clk 0:00:06.1]} 60... Kxf7 {[%clk 0:00:03.1]} 61. Nxe5+
{[%clk 0:00:06.4]} 61... Kg7 {[%clk 0:00:02.8]} 62. Kf1 {[%clk 0:00:06.1]} 62...
Ra7 {[%clk 0:00:03.3]} 63. Nf3 {[%clk 0:00:06.2]} 63... Rc7 {[%clk 0:00:03.9]}
64. Kg2 {[%clk 0:00:06.4]} 64... Rf7 {[%clk 0:00:04.5]} 65. Nh4 {[%clk
0:00:06.7]} 65... Nh7 {[%clk 0:00:04.8]} 66. h3 {[%clk 0:00:06.9]} 66... Ng5
{[%clk 0:00:05]} 67. g4 {[%clk 0:00:07.3]} 67... Ra7 {[%clk 0:00:05.4]} 68. Re3
{[%clk 0:00:07.7]} 68... Kf6 {[%clk 0:00:05.2]} 69. Kg3 {[%clk 0:00:07.9]} 69...
Ra1 {[%clk 0:00:04.6]} 70. Rc3 {[%clk 0:00:07.5]} 70... Rh1 {[%clk 0:00:04.1]}
71. Kg2 {[%clk 0:00:07.1]} 71... Ra1 {[%clk 0:00:03.7]} 72. Rc6+ {[%clk
0:00:07.2]} 72... Ke5 {[%clk 0:00:04.3]} 73. Ng6+ {[%clk 0:00:06]} 73... Ke4
{[%clk 0:00:04.4]} 74. Rc3 {[%clk 0:00:05.9]} 74... Ra2+ {[%clk 0:00:04.5]} 75.
Kg3 {[%clk 0:00:06.3]} 75... Kd4 {[%clk 0:00:05.1]} 76. Rb3 {[%clk 0:00:05.9]}
76... Kc4 {[%clk 0:00:05.7]} 77. Re3 {[%clk 0:00:05.5]} 77... Kd4 {[%clk
0:00:06.3]} 78. Re1 {[%clk 0:00:05]} 78... Ra3+ {[%clk 0:00:06.3]} 79. Kg2
{[%clk 0:00:04.9]} 79... Rxh3 {[%clk 0:00:06.9]} 80. Nf4 {[%clk 0:00:03.8]}
80... Ra3 {[%clk 0:00:07.3]} 81. Ne6+ {[%clk 0:00:03.9]} 81... Kd5 {[%clk
0:00:06.5]} 82. Nxg5 {[%clk 0:00:04]} 82... hxg5 {[%clk 0:00:07.4]} 83. Rf1
{[%clk 0:00:04.6]} 83... Ke6 {[%clk 0:00:07]} 84. Rf5 {[%clk 0:00:05.2]} 84...
Ra4 {[%clk 0:00:07.2]} 85. Kg3 {[%clk 0:00:05.6]} 85... Ra3+ {[%clk 0:00:06.7]}
86. Kg2 {[%clk 0:00:05.5]} 86... Ra4 {[%clk 0:00:07.1]} 87. Kg3 {[%clk
0:00:05.8]} 87... Ra3+ {[%clk 0:00:07]} 88. Kg2 {[%clk 0:00:06.1]} 1/2-1/2

[Event "*** SCC Grand Prix: Titled Tuesday Blitz"]
[Site "Chess.com"]
[Date "2020.10.06"]
[Round "8"]
[White "besarquis"]
[Black "KatarinaOstojic"]
[Result "1-0"]
[WhiteElo "2234"]
[BlackElo "2341"]
[TimeControl "180+1"]
[EndTime "11:38:16 PDT"]
[Termination "besarquis won by checkmate"]

1. e4 {[%clk 0:02:59.6]} 1... c5 {[%clk 0:02:59.4]} 2. Nf3 {[%clk 0:02:59.5]}
2... d6 {[%clk 0:02:59.2]} 3. Bb5+ {[%clk 0:02:59.6]} 3... Nd7 {[%clk
0:02:58.7]} 4. c3 {[%clk 0:02:58.8]} 4... Nf6 {[%clk 0:02:57.6]} 5. Bd3 {[%clk
0:02:56.4]} 5... a6 {[%clk 0:02:46.3]} 6. a4 {[%clk 0:02:54.5]} 6... g6 {[%clk
0:02:44.9]} 7. O-O {[%clk 0:02:54]} 7... Bg7 {[%clk 0:02:45]} 8. Re1 {[%clk
0:02:54.1]} 8... O-O {[%clk 0:02:42.4]} 9. Bc2 {[%clk 0:02:54.1]} 9... e5 {[%clk
0:02:41.2]} 10. d4 {[%clk 0:02:52.6]} 10... cxd4 {[%clk 0:02:41.6]} 11. cxd4
{[%clk 0:02:52.6]} 11... Re8 {[%clk 0:02:24.1]} 12. Nc3 {[%clk 0:02:52.2]} 12...
exd4 {[%clk 0:02:19.9]} 13. Nxd4 {[%clk 0:02:50.5]} 13... Nc5 {[%clk 0:02:18.1]}
14. Bg5 {[%clk 0:02:42.1]} 14... h6 {[%clk 0:02:11]} 15. Bh4 {[%clk 0:02:42]}
15... g5 {[%clk 0:02:09.5]} 16. Bg3 {[%clk 0:02:42]} 16... Qb6 {[%clk
0:02:08.6]} 17. Qd2 {[%clk 0:02:02.6]} 17... Be6 {[%clk 0:02:06.6]} 18. a5
{[%clk 0:01:59]} 18... Qb4 {[%clk 0:01:56.1]} 19. Nxe6 {[%clk 0:01:39.6]} 19...
Rxe6 {[%clk 0:01:54.6]} 20. e5 {[%clk 0:01:04.4]} 20... dxe5 {[%clk 0:01:50.1]}
21. Rxe5 {[%clk 0:01:02]} 21... Rxe5 {[%clk 0:01:43.5]} 22. Bxe5 {[%clk
0:01:02]} 22... Nfe4 {[%clk 0:01:31]} 23. Nxe4 {[%clk 0:00:58.3]} 23... Qxd2
{[%clk 0:01:31.5]} 24. Nxd2 {[%clk 0:00:57.9]} 24... Bxe5 {[%clk 0:01:32.1]} 25.
Nc4 {[%clk 0:00:55.7]} 25... Bf6 {[%clk 0:01:26.2]} 26. Rd1 {[%clk 0:00:52]}
26... Rd8 {[%clk 0:01:19.6]} 27. Rxd8+ {[%clk 0:00:42.2]} 27... Bxd8 {[%clk
0:01:20.5]} 28. b4 {[%clk 0:00:42.5]} 28... Ne6 {[%clk 0:01:19.5]} 29. Be4
{[%clk 0:00:39.4]} 29... Be7 {[%clk 0:01:17.7]} 30. Bxb7 {[%clk 0:00:38.3]}
30... Bxb4 {[%clk 0:01:18.3]} 31. Bxa6 {[%clk 0:00:37.6]} 31... Nc5 {[%clk
0:00:58.1]} 32. Bb5 {[%clk 0:00:34.7]} 32... Kf8 {[%clk 0:00:48.9]} 33. a6
{[%clk 0:00:34.3]} 33... Nxa6 {[%clk 0:00:46.5]} 34. Bxa6 {[%clk 0:00:34.4]}
34... Ke7 {[%clk 0:00:47.4]} 35. Kf1 {[%clk 0:00:33]} 35... Ke6 {[%clk
0:00:46.4]} 36. Ne3 {[%clk 0:00:33]} 36... Ke5 {[%clk 0:00:45]} 37. Bc4 {[%clk
0:00:31.5]} 37... f5 {[%clk 0:00:43.7]} 38. Ke2 {[%clk 0:00:31.1]} 38... h5
{[%clk 0:00:38.9]} 39. Bd3 {[%clk 0:00:29]} 39... f4 {[%clk 0:00:38]} 40. Nc4+
{[%clk 0:00:29]} 40... Kd4 {[%clk 0:00:37.8]} 41. Nd2 {[%clk 0:00:25.8]} 41...
Be7 {[%clk 0:00:34.5]} 42. Nf3+ {[%clk 0:00:24.6]} 42... Kd5 {[%clk 0:00:34.7]}
43. Bg6 {[%clk 0:00:24.4]} 43... h4 {[%clk 0:00:34.1]} 44. h3 {[%clk 0:00:23.7]}
44... Ke6 {[%clk 0:00:34.3]} 45. Nh2 {[%clk 0:00:22.2]} 45... Kf6 {[%clk
0:00:34]} 46. Be8 {[%clk 0:00:21.5]} 46... Bc5 {[%clk 0:00:34.5]} 47. Kf3 {[%clk
0:00:20.2]} 47... Bb6 {[%clk 0:00:31.8]} 48. Bd7 {[%clk 0:00:20]} 48... Bc5
{[%clk 0:00:31.7]} 49. Ng4+ {[%clk 0:00:19.5]} 49... Kg6 {[%clk 0:00:30.8]} 50.
Ne5+ {[%clk 0:00:19.8]} 50... Kf6 {[%clk 0:00:30.6]} 51. Nd3 {[%clk 0:00:20.1]}
51... Bb6 {[%clk 0:00:30.9]} 52. Kg4 {[%clk 0:00:20.1]} 52... Ba7 {[%clk
0:00:28.4]} 53. Bc6 {[%clk 0:00:20.2]} 53... Bb6 {[%clk 0:00:28.4]} 54. Kf3
{[%clk 0:00:20.4]} 54... Ba7 {[%clk 0:00:28.5]} 55. Ke4 {[%clk 0:00:20.8]} 55...
Bb6 {[%clk 0:00:27.6]} 56. Kd5 {[%clk 0:00:21]} 56... Ba7 {[%clk 0:00:27.7]} 57.
Nc5 {[%clk 0:00:21.2]} 57... Kf5 {[%clk 0:00:24.5]} 58. Bd7+ {[%clk 0:00:21.2]}
58... Kf6 {[%clk 0:00:24]} 59. Kc6 {[%clk 0:00:21.4]} 59... Bb8 {[%clk
0:00:21.3]} 60. Kd5 {[%clk 0:00:21.6]} 60... Ba7 {[%clk 0:00:21.3]} 61. Bb5
{[%clk 0:00:21.4]} 61... Kf5 {[%clk 0:00:20.6]} 62. Bd3+ {[%clk 0:00:20.7]}
62... Kf6 {[%clk 0:00:20.9]} 63. Ne4+ {[%clk 0:00:20.7]} 63... Kg6 {[%clk
0:00:21.6]} 64. Ng3+ {[%clk 0:00:19.8]} 64... Kh6 {[%clk 0:00:20.4]} 65. Ne4
{[%clk 0:00:20.1]} 65... Kg6 {[%clk 0:00:20.4]} 66. Ke6 {[%clk 0:00:20.5]} 66...
Bb8 {[%clk 0:00:17.6]} 67. Bb5 {[%clk 0:00:19.4]} 67... Bc7 {[%clk 0:00:16.8]}
68. Be8+ {[%clk 0:00:19.6]} 68... Kh6 {[%clk 0:00:15.5]} 69. Kf5 {[%clk
0:00:19.6]} 69... Bd8 {[%clk 0:00:15.9]} 70. Bf7 {[%clk 0:00:17.7]} 70... Be7
{[%clk 0:00:13.9]} 71. Be8 {[%clk 0:00:17.5]} 71... Bd8 {[%clk 0:00:14.1]} 72.
Bb5 {[%clk 0:00:17.8]} 72... Be7 {[%clk 0:00:13.8]} 73. Be2 {[%clk 0:00:17.4]}
73... Bd8 {[%clk 0:00:13.9]} 74. Nf6 {[%clk 0:00:17.8]} 74... Kg7 {[%clk
0:00:12.5]} 75. Ng4 {[%clk 0:00:16.9]} 75... Be7 {[%clk 0:00:12.1]} 76. Bc4
{[%clk 0:00:17]} 76... Bd8 {[%clk 0:00:12.2]} 77. Ne5 {[%clk 0:00:17]} 77... Be7
{[%clk 0:00:10.9]} 78. Nf7 {[%clk 0:00:16.9]} 78... Bc5 {[%clk 0:00:09.3]} 79.
Nxg5 {[%clk 0:00:17]} 79... Bxf2 {[%clk 0:00:09.8]} 80. Kxf4 {[%clk 0:00:17.3]}
80... Bg3+ {[%clk 0:00:10.4]} 81. Kg4 {[%clk 0:00:17.4]} 81... Kg6 {[%clk
0:00:11.3]} 82. Nf3 {[%clk 0:00:17.6]} 82... Kf6 {[%clk 0:00:10.2]} 83. Nxh4
{[%clk 0:00:17.9]} 83... Be1 {[%clk 0:00:09.6]} 84. Nf3 {[%clk 0:00:18.1]} 84...
Bb4 {[%clk 0:00:10.5]} 85. h4 {[%clk 0:00:17.3]} 85... Bf8 {[%clk 0:00:11.4]}
86. Kh5 {[%clk 0:00:15.5]} 86... Kg7 {[%clk 0:00:11.5]} 87. g4 {[%clk
0:00:15.6]} 87... Be7 {[%clk 0:00:11.8]} 88. g5 {[%clk 0:00:15.9]} 88... Bd8
{[%clk 0:00:12.2]} 89. Kg4 {[%clk 0:00:16.3]} 89... Be7 {[%clk 0:00:12.5]} 90.
h5 {[%clk 0:00:16.7]} 90... Kh7 {[%clk 0:00:11]} 91. Bd3+ {[%clk 0:00:16.1]}
91... Kg7 {[%clk 0:00:09.5]} 92. h6+ {[%clk 0:00:16.5]} 92... Kh8 {[%clk
0:00:09.8]} 93. Kh5 {[%clk 0:00:16.8]} 93... Bd8 {[%clk 0:00:06.4]} 94. Ne5
{[%clk 0:00:17]} 94... Bc7 {[%clk 0:00:05]} 95. Ng6+ {[%clk 0:00:16]} 95... Kg8
{[%clk 0:00:04.9]} 96. Bc4+ {[%clk 0:00:15.6]} 96... Kh7 {[%clk 0:00:04.8]} 97.
Ne7 {[%clk 0:00:14.5]} 97... Bf4 {[%clk 0:00:04.6]} 98. g6+ {[%clk 0:00:14.4]}
98... Kh8 {[%clk 0:00:04.2]} 99. g7+ {[%clk 0:00:14.7]} 99... Kh7 {[%clk
0:00:04.6]} 100. Bd3# {[%clk 0:00:15]} 1-0